[Event "*** Titled Tuesday Blitz"]
[Site "Chess.com"]
[Date "2021.04.20"]
[Round "11"]
[White "allejam"]
[Black "FeketeBarika"]
[Result "1-0"]
[WhiteElo "2209"]
[BlackElo "2238"]
[TimeControl "180+1"]
[EndTime "12:04:40 PDT"]
[Termination "allejam won by resignation"]

1. e4 {[%clk 0:03:00.9]} 1... e6 {[%clk 0:02:58.6]} 2. Qe2 {[%clk 0:02:59.9]}
2... d5 {[%clk 0:02:59.2]} 3. exd5 {[%clk 0:03:00.8]} 3... Qxd5 {[%clk
0:02:58.3]} 4. Nc3 {[%clk 0:02:59.5]} 4... Qd8 {[%clk 0:02:58]} 5. g3 {[%clk
0:03:00]} 5... Nf6 {[%clk 0:02:58.6]} 6. Bg2 {[%clk 0:03:00]} 6... Be7 {[%clk
0:02:59.2]} 7. Nf3 {[%clk 0:03:00]} 7... O-O {[%clk 0:03:00.1]} 8. O-O {[%clk
0:02:59.9]} 8... c5 {[%clk 0:03:00.3]} 9. Rd1 {[%clk 0:02:59]} 9... Nc6 {[%clk
0:03:00.8]} 10. d3 {[%clk 0:02:57.5]} 10... Nd5 {[%clk 0:02:57.8]} 11. d4 {[%clk
0:02:40.4]} 11... Nxc3 {[%clk 0:02:54.2]} 12. bxc3 {[%clk 0:02:41.3]} 12... Bf6
{[%clk 0:02:51]} 13. Be3 {[%clk 0:02:29.4]} 13... Qe7 {[%clk 0:02:46.8]} 14.
Rac1 {[%clk 0:02:12.3]} 14... Rd8 {[%clk 0:02:42]} 15. Rb1 {[%clk 0:02:04.1]}
15... Rb8 {[%clk 0:02:34.5]} 16. Bf4 {[%clk 0:02:02.7]} 16... Ra8 {[%clk
0:02:34.2]} 17. Be5 {[%clk 0:01:44.1]} 17... Bxe5 {[%clk 0:02:29]} 18. Nxe5
{[%clk 0:01:42.2]} 18... Nxe5 {[%clk 0:02:26]} 19. dxe5 {[%clk 0:01:40.2]} 19...
Rb8 {[%clk 0:02:21.1]} 20. Rxd8+ {[%clk 0:01:35.3]} 20... Qxd8 {[%clk 0:02:22]}
21. Rd1 {[%clk 0:01:34.7]} 21... Qc7 {[%clk 0:02:16.3]} 22. Qd3 {[%clk
0:01:28.5]} 22... g6 {[%clk 0:02:14.7]} 23. Qd8+ {[%clk 0:01:28]} 23... Qxd8
{[%clk 0:02:14.1]} 24. Rxd8+ {[%clk 0:01:28.9]} 24... Kg7 {[%clk 0:02:14.7]} 25.
f4 {[%clk 0:01:24.8]} 25... b6 {[%clk 0:02:13.6]} 26. Kf2 {[%clk 0:01:22.2]}
26... h5 {[%clk 0:02:00.4]} 27. Bc6 {[%clk 0:01:20.7]} 27... b5 {[%clk
0:01:46.4]} 28. Bd7 {[%clk 0:01:15.4]} 28... b4 {[%clk 0:01:43.9]} 29. Rxc8
{[%clk 0:01:07.1]} 29... Rb7 {[%clk 0:01:41.1]} 30. Ba4 {[%clk 0:01:04.5]} 30...
bxc3 {[%clk 0:01:36.7]} 31. Rxc5 {[%clk 0:01:03.6]} 31... Rb4 {[%clk 0:01:33.2]}
32. Bb3 {[%clk 0:01:01.8]} 32... Rd4 {[%clk 0:01:33]} 33. Rxc3 {[%clk
0:00:54.1]} 33... Rd2+ {[%clk 0:01:32.7]} 34. Kg1 {[%clk 0:00:54.2]} 34... Rd1+
{[%clk 0:01:30]} 35. Kg2 {[%clk 0:00:54.6]} 35... Rd2+ {[%clk 0:01:25.4]} 36.
Kh3 {[%clk 0:00:54.3]} 36... Kh6 {[%clk 0:01:20.1]} 37. Rd3 {[%clk 0:00:52.2]}
37... Rf2 {[%clk 0:01:18.3]} 38. c4 {[%clk 0:00:49.7]} 38... g5 {[%clk
0:01:17.6]} 39. fxg5+ {[%clk 0:00:49.7]} 39... Kxg5 {[%clk 0:01:17.3]} 40. c5
{[%clk 0:00:48.3]} 40... Rf1 {[%clk 0:01:04.5]} 41. Rc3 {[%clk 0:00:48.1]} 41...
Rd1 {[%clk 0:00:59.5]} 42. Bxd1 {[%clk 0:00:47]} 1-0

[Event "*** Titled Tuesday Blitz"]
[Site "Chess.com"]
[Date "2021.04.20"]
[Round "11"]
[White "PchelkinVK"]
[Black "nocnypako"]
[Result "0-1"]
[WhiteElo "2629"]
[BlackElo "2552"]
[TimeControl "180+1"]
[EndTime "12:04:43 PDT"]
[Termination "nocnypako won on time"]

1. d4 {[%clk 0:03:00.9]} 1... Nf6 {[%clk 0:02:59.4]} 2. Nc3 {[%clk 0:02:57.3]}
2... d5 {[%clk 0:02:58]} 3. Bf4 {[%clk 0:02:56.9]} 3... e6 {[%clk 0:02:56.7]} 4.
a3 {[%clk 0:02:56.3]} 4... Bd6 {[%clk 0:02:56.1]} 5. Qd2 {[%clk 0:02:56.7]} 5...
O-O {[%clk 0:02:54.7]} 6. Nf3 {[%clk 0:02:55.2]} 6... c5 {[%clk 0:02:54.3]} 7.
dxc5 {[%clk 0:02:55.5]} 7... Bxc5 {[%clk 0:02:42.1]} 8. O-O-O {[%clk 0:02:55.9]}
8... Qe7 {[%clk 0:02:36.5]} 9. Bg5 {[%clk 0:02:53.6]} 9... h6 {[%clk 0:02:34.7]}
10. Bh4 {[%clk 0:02:53.3]} 10... Nc6 {[%clk 0:02:21.2]} 11. g4 {[%clk
0:02:20.4]} 11... d4 {[%clk 0:01:49.3]} 12. Bxf6 {[%clk 0:02:06.7]} 12... Qxf6
{[%clk 0:01:20.8]} 13. Ne4 {[%clk 0:02:06.5]} 13... Qe7 {[%clk 0:01:20.8]} 14.
g5 {[%clk 0:01:13.3]} 14... hxg5 {[%clk 0:01:10.3]} 15. Nfxg5 {[%clk 0:01:03.9]}
15... Bxa3 {[%clk 0:01:04]} 16. bxa3 {[%clk 0:00:17.2]} 16... Qxa3+ {[%clk
0:00:42.9]} 17. Kb1 {[%clk 0:00:16.9]} 17... Nb4 {[%clk 0:00:43.1]} 18. c3
{[%clk 0:00:11.5]} 18... Qb3+ {[%clk 0:00:42.7]} 0-1

[Event "*** Titled Tuesday Blitz"]
[Site "Chess.com"]
[Date "2021.04.20"]
[Round "11"]
[White "AsaHoffmann"]
[Black "lacafi"]
[Result "1-0"]
[WhiteElo "2353"]
[BlackElo "2222"]
[TimeControl "180+1"]
[EndTime "12:04:48 PDT"]
[Termination "AsaHoffmann won on time"]

1. d4 {[%clk 0:02:49.5]} 1... f5 {[%clk 0:02:59.2]} 2. Nc3 {[%clk 0:02:48.3]}
2... g6 {[%clk 0:02:58]} 3. h4 {[%clk 0:02:43.9]} 3... Bg7 {[%clk 0:02:57.6]} 4.
h5 {[%clk 0:02:43.6]} 4... d5 {[%clk 0:02:55.6]} 5. f3 {[%clk 0:02:42.1]} 5...
c6 {[%clk 0:02:52]} 6. e4 {[%clk 0:02:41.7]} 6... dxe4 {[%clk 0:02:48.9]} 7. Be3
{[%clk 0:02:38.4]} 7... exf3 {[%clk 0:02:47.9]} 8. Nxf3 {[%clk 0:02:37.8]} 8...
e6 {[%clk 0:02:28.3]} 9. Bc4 {[%clk 0:02:36.3]} 9... Qd6 {[%clk 0:02:20.4]} 10.
Qd2 {[%clk 0:02:18.5]} 10... Nd7 {[%clk 0:01:27.3]} 11. O-O-O {[%clk 0:02:15.7]}
11... Nb6 {[%clk 0:01:24.4]} 12. Bb3 {[%clk 0:02:15.1]} 12... Bd7 {[%clk
0:01:23.9]} 13. Ne5 {[%clk 0:02:13.5]} 13... Bxe5 {[%clk 0:01:20.4]} 14. dxe5
{[%clk 0:02:12.9]} 14... Qxd2+ {[%clk 0:01:19.7]} 15. Rxd2 {[%clk 0:02:12.3]}
15... Ne7 {[%clk 0:01:17.9]} 16. hxg6 {[%clk 0:02:09.6]} 16... Nxg6 {[%clk
0:01:15.6]} 17. Bg5 {[%clk 0:02:09.3]} 17... h5 {[%clk 0:01:00.2]} 18. Bf6
{[%clk 0:02:08.1]} 18... Rh7 {[%clk 0:01:00]} 19. Rd6 {[%clk 0:02:01]} 19... Nd5
{[%clk 0:00:56.5]} 20. Bxd5 {[%clk 0:01:55.8]} 20... cxd5 {[%clk 0:00:54.2]} 21.
Ne2 {[%clk 0:01:55.1]} 21... Rc8 {[%clk 0:00:44.9]} 22. Nd4 {[%clk 0:01:54.1]}
22... Nf8 {[%clk 0:00:42.6]} 23. c3 {[%clk 0:01:49]} 23... Rc4 {[%clk
0:00:39.7]} 24. Kd2 {[%clk 0:01:47.3]} 24... Ra4 {[%clk 0:00:36.7]} 25. a3
{[%clk 0:01:47.1]} 25... Rc4 {[%clk 0:00:31.7]} 26. b4 {[%clk 0:01:44.9]} 26...
a6 {[%clk 0:00:28.7]} 27. Rh4 {[%clk 0:01:43.6]} 27... a5 {[%clk 0:00:15.8]} 28.
Rb6 {[%clk 0:01:39.3]} 28... axb4 {[%clk 0:00:14]} 29. axb4 {[%clk 0:01:38.8]}
29... Bc6 {[%clk 0:00:12.5]} 30. b5 {[%clk 0:01:34.3]} 30... Nd7 {[%clk
0:00:10.7]} 31. bxc6 {[%clk 0:01:24.7]} 31... Nxb6 {[%clk 0:00:10.8]} 32. cxb7
{[%clk 0:01:24.4]} 32... Rxb7 {[%clk 0:00:10.2]} 33. Rxh5 {[%clk 0:01:23.8]}
33... Rf7 {[%clk 0:00:07.5]} 34. Nxe6 {[%clk 0:01:22.6]} 34... Rg4 {[%clk
0:00:05.3]} 35. Rh8+ {[%clk 0:01:20.2]} 35... Kd7 {[%clk 0:00:05.6]} 36. Nd4
{[%clk 0:01:19.5]} 36... Rxg2+ {[%clk 0:00:05.1]} 37. Ke1 {[%clk 0:01:18.6]}
37... Nc4 {[%clk 0:00:05.1]} 38. e6+ {[%clk 0:01:18.3]} 38... Kd6 {[%clk
0:00:02.9]} 39. exf7 {[%clk 0:01:17.9]} 1-0

[Event "*** Titled Tuesday Blitz"]
[Site "Chess.com"]
[Date "2021.04.20"]
[Round "11"]
[White "Qvalda"]
[Black "NovikovaGalina"]
[Result "1-0"]
[WhiteElo "2421"]
[BlackElo "2297"]
[TimeControl "180+1"]
[EndTime "12:04:49 PDT"]
[Termination "Qvalda won by resignation"]

1. e4 {[%clk 0:03:00.9]} 1... e6 {[%clk 0:03:00.1]} 2. d4 {[%clk 0:03:00.5]}
2... d5 {[%clk 0:03:01]} 3. Bd3 {[%clk 0:03:01]} 3... dxe4 {[%clk 0:02:58.8]} 4.
Bxe4 {[%clk 0:03:01.9]} 4... Nf6 {[%clk 0:02:59.4]} 5. Bf3 {[%clk 0:03:01.8]}
5... c5 {[%clk 0:03:00.3]} 6. Ne2 {[%clk 0:03:02]} 6... Nc6 {[%clk 0:03:00]} 7.
Be3 {[%clk 0:03:01.6]} 7... cxd4 {[%clk 0:03:00.6]} 8. Nxd4 {[%clk 0:03:02.4]}
8... Ne5 {[%clk 0:03:00.1]} 9. Nc3 {[%clk 0:03:01.3]} 9... Be7 {[%clk 0:03:00]}
10. Qe2 {[%clk 0:03:00.2]} 10... O-O {[%clk 0:02:59.4]} 11. O-O-O {[%clk
0:02:59.8]} 11... Nxf3 {[%clk 0:02:59.3]} 12. Nxf3 {[%clk 0:02:47.6]} 12... Qa5
{[%clk 0:02:57.3]} 13. Kb1 {[%clk 0:02:44.7]} 13... Bd7 {[%clk 0:02:56.9]} 14.
Bd4 {[%clk 0:02:41.5]} 14... Bc6 {[%clk 0:02:56.1]} 15. Ne5 {[%clk 0:02:41.2]}
15... Rfd8 {[%clk 0:02:44.4]} 16. Rhg1 {[%clk 0:02:29]} 16... Rac8 {[%clk
0:02:43.9]} 17. g4 {[%clk 0:02:27.8]} 17... Rxd4 {[%clk 0:02:39.2]} 18. Rxd4
{[%clk 0:02:22.9]} 18... Bc5 {[%clk 0:02:39.1]} 19. Rdd1 {[%clk 0:02:15.5]}
19... Nd5 {[%clk 0:02:37.4]} 20. Nxd5 {[%clk 0:02:02.3]} 20... Bxd5 {[%clk
0:02:37.1]} 21. c4 {[%clk 0:01:49.7]} 21... Bc6 {[%clk 0:02:27.7]} 22. Nxc6
{[%clk 0:01:35.1]} 22... bxc6 {[%clk 0:02:28.6]} 23. Rg3 {[%clk 0:01:29.5]}
23... Qc7 {[%clk 0:02:19.7]} 24. Rgd3 {[%clk 0:01:27.3]} 24... Qb6 {[%clk
0:02:19.2]} 25. Qd2 {[%clk 0:01:20.5]} 25... Be7 {[%clk 0:02:12.8]} 26. f4
{[%clk 0:01:16.7]} 26... h6 {[%clk 0:02:09.9]} 27. g5 {[%clk 0:01:11]} 27...
hxg5 {[%clk 0:02:08.8]} 28. fxg5 {[%clk 0:01:11.9]} 28... Qc5 {[%clk 0:02:04.4]}
29. h4 {[%clk 0:01:06.1]} 29... Qxc4 {[%clk 0:02:03.7]} 30. Rd4 {[%clk
0:00:59.7]} 30... Qc5 {[%clk 0:01:59.7]} 31. Qc2 {[%clk 0:00:55.1]} 31... Qb5
{[%clk 0:01:50.2]} 32. Rd7 {[%clk 0:00:42.9]} 32... Bf8 {[%clk 0:01:46.7]} 33.
Qf2 {[%clk 0:00:27.5]} 33... Qf5+ {[%clk 0:01:35.5]} 34. Qxf5 {[%clk 0:00:25.5]}
34... exf5 {[%clk 0:01:36.4]} 35. Rxa7 {[%clk 0:00:21.6]} 35... f4 {[%clk
0:01:36]} 36. Rdd7 {[%clk 0:00:20]} 36... Re8 {[%clk 0:01:27.8]} 37. Rxf7 {[%clk
0:00:18.9]} 37... Re1+ {[%clk 0:01:25.1]} 38. Kc2 {[%clk 0:00:18.9]} 38... Rf1
{[%clk 0:01:26]} 39. g6 {[%clk 0:00:18.4]} 39... Rg1 {[%clk 0:01:21]} 40. h5
{[%clk 0:00:16.8]} 40... Rg2+ {[%clk 0:01:19.7]} 41. Kc3 {[%clk 0:00:15.4]}
41... Rh2 {[%clk 0:01:20.6]} 42. Ra8 {[%clk 0:00:14.7]} 1-0

[Event "*** Titled Tuesday Blitz"]
[Site "Chess.com"]
[Date "2021.04.20"]
[Round "11"]
[White "MVM2008"]
[Black "narutosmith"]
[Result "1-0"]
[WhiteElo "2174"]
[BlackElo "2312"]
[TimeControl "180+1"]
[EndTime "12:04:54 PDT"]
[Termination "MVM2008 won by checkmate"]

1. e4 {[%clk 0:02:58.2]} 1... c6 {[%clk 0:02:59.7]} 2. Nc3 {[%clk 0:02:54.7]}
2... d5 {[%clk 0:03:00.6]} 3. Nf3 {[%clk 0:02:54]} 3... dxe4 {[%clk 0:03:00.9]}
4. Nxe4 {[%clk 0:02:54.2]} 4... Nf6 {[%clk 0:03:01.8]} 5. Nxf6+ {[%clk
0:02:53.7]} 5... exf6 {[%clk 0:03:02.7]} 6. d4 {[%clk 0:02:53.6]} 6... Bd6
{[%clk 0:03:02.8]} 7. Bd3 {[%clk 0:02:51.5]} 7... O-O {[%clk 0:03:02.8]} 8. O-O
{[%clk 0:02:50.4]} 8... Re8 {[%clk 0:03:03.2]} 9. Re1 {[%clk 0:02:49.7]} 9...
Rxe1+ {[%clk 0:02:48.4]} 10. Qxe1 {[%clk 0:02:50.6]} 10... Nd7 {[%clk 0:02:47]}
11. Qe4 {[%clk 0:02:45.5]} 11... Nf8 {[%clk 0:02:46.7]} 12. c4 {[%clk
0:02:42.9]} 12... Be6 {[%clk 0:02:43.8]} 13. b3 {[%clk 0:02:40.5]} 13... Qd7
{[%clk 0:02:30.6]} 14. Bf4 {[%clk 0:02:32.7]} 14... Ng6 {[%clk 0:02:12.2]} 15.
Bxd6 {[%clk 0:02:29.2]} 15... Qxd6 {[%clk 0:02:13.1]} 16. Re1 {[%clk 0:02:24.6]}
16... Rd8 {[%clk 0:02:10.4]} 17. h4 {[%clk 0:02:12.4]} 17... a5 {[%clk
0:02:00.1]} 18. h5 {[%clk 0:02:10.5]} 18... Nf8 {[%clk 0:02:00.2]} 19. h6 {[%clk
0:02:07.8]} 19... g6 {[%clk 0:01:57.4]} 20. Qh4 {[%clk 0:02:03.2]} 20... Bc8
{[%clk 0:01:48.3]} 21. c5 {[%clk 0:01:38.5]} 21... Qc7 {[%clk 0:01:21.8]} 22.
Qxf6 {[%clk 0:01:30.6]} 22... Ne6 {[%clk 0:01:22.2]} 23. Bc4 {[%clk 0:01:06.5]}
23... Rf8 {[%clk 0:00:54.2]} 24. Ng5 {[%clk 0:00:56.5]} 24... Qd7 {[%clk
0:00:38.2]} 25. Rxe6 {[%clk 0:00:13.2]} 25... fxe6 {[%clk 0:00:39.1]} 26. Bxe6+
{[%clk 0:00:12.5]} 26... Qxe6 {[%clk 0:00:38.8]} 27. Qg7# {[%clk 0:00:12.2]} 1-0

[Event "*** Titled Tuesday Blitz"]
[Site "Chess.com"]
[Date "2021.04.20"]
[Round "11"]
[White "Guzman70"]
[Black "chesshermar"]
[Result "1-0"]
[WhiteElo "2296"]
[BlackElo "2195"]
[TimeControl "180+1"]
[EndTime "12:04:54 PDT"]
[Termination "Guzman70 won by resignation"]

1. e4 {[%clk 0:03:00.9]} 1... e5 {[%clk 0:02:55]} 2. Nf3 {[%clk 0:02:58.7]} 2...
Nc6 {[%clk 0:02:54]} 3. c3 {[%clk 0:02:58.6]} 3... d5 {[%clk 0:02:50.8]} 4. Bb5
{[%clk 0:02:53.7]} 4... dxe4 {[%clk 0:02:12.3]} 5. Nxe5 {[%clk 0:02:49.2]} 5...
Qd5 {[%clk 0:02:12.7]} 6. Bxc6+ {[%clk 0:02:46.4]} 6... bxc6 {[%clk 0:02:06.8]}
7. f4 {[%clk 0:02:40.3]} 7... f6 {[%clk 0:01:53.2]} 8. Ng4 {[%clk 0:02:35.4]}
8... h5 {[%clk 0:01:52.8]} 9. Ne3 {[%clk 0:02:34.9]} 9... Qd3 {[%clk 0:01:48.4]}
10. Qe2 {[%clk 0:02:34.3]} 10... Bd6 {[%clk 0:01:46.5]} 11. Qxd3 {[%clk
0:02:33.8]} 11... exd3 {[%clk 0:01:47.1]} 12. O-O {[%clk 0:02:33.6]} 12... Ne7
{[%clk 0:01:46.4]} 13. Na3 {[%clk 0:02:27.4]} 13... Ba6 {[%clk 0:01:44.8]} 14.
b4 {[%clk 0:02:16]} 14... Rb8 {[%clk 0:01:41.7]} 15. Nac4 {[%clk 0:02:14]} 15...
c5 {[%clk 0:01:33.9]} 16. Nxd6+ {[%clk 0:02:04.6]} 16... cxd6 {[%clk 0:01:34.8]}
17. bxc5 {[%clk 0:02:04.6]} 17... dxc5 {[%clk 0:01:35.7]} 18. Ba3 {[%clk
0:02:02.8]} 18... c4 {[%clk 0:01:34.7]} 19. Rfe1 {[%clk 0:01:57.8]} 19... Kf7
{[%clk 0:01:22]} 20. Bxe7 {[%clk 0:01:54.5]} 20... Kxe7 {[%clk 0:01:21.9]} 21.
Nxc4+ {[%clk 0:01:54.1]} 21... Kf7 {[%clk 0:01:22.2]} 22. Nd6+ {[%clk
0:01:51.1]} 22... Kg6 {[%clk 0:01:21.2]} 23. f5+ {[%clk 0:01:49.4]} 23... Kg5
{[%clk 0:01:21.5]} 24. Re7 {[%clk 0:01:48]} 24... g6 {[%clk 0:01:17.4]} 25. Rxa7
{[%clk 0:01:37.5]} 25... Rb6 {[%clk 0:01:14.9]} 26. Nf7+ {[%clk 0:01:33.7]}
26... Kxf5 {[%clk 0:01:15.5]} 27. Nxh8 {[%clk 0:01:32.6]} 27... Bb7 {[%clk
0:01:15.8]} 28. Rf1+ {[%clk 0:01:29.7]} 28... Ke5 {[%clk 0:01:13.5]} 29. Nxg6+
{[%clk 0:01:29.3]} 29... Kd5 {[%clk 0:01:13.3]} 30. Nf4+ {[%clk 0:01:20.1]}
30... Ke4 {[%clk 0:01:12.5]} 31. Nxh5 {[%clk 0:01:15.7]} 31... f5 {[%clk
0:01:09.3]} 32. Ng3+ {[%clk 0:01:14.9]} 32... Ke5 {[%clk 0:01:08.3]} 33. Rxf5+
{[%clk 0:01:12.6]} 33... Ke6 {[%clk 0:01:09]} 34. Rxb7 {[%clk 0:01:07.3]} 34...
Rxb7 {[%clk 0:01:08.9]} 35. Rf3 {[%clk 0:01:07.1]} 35... Rb2 {[%clk 0:01:07.1]}
36. Rxd3 {[%clk 0:01:06.4]} 36... Rxa2 {[%clk 0:01:07.2]} 37. Kf2 {[%clk
0:01:05]} 37... Ke5 {[%clk 0:01:07.6]} 38. Rd4 {[%clk 0:01:04.9]} 38... Ra8
{[%clk 0:01:06.8]} 39. h4 {[%clk 0:01:04.7]} 39... Rf8+ {[%clk 0:01:07.7]} 40.
Ke2 {[%clk 0:01:04.3]} 40... Rg8 {[%clk 0:01:08.2]} 41. Kf2 {[%clk 0:00:59.8]}
41... Rf8+ {[%clk 0:01:08.2]} 42. Kg1 {[%clk 0:01:00.1]} 42... Rg8 {[%clk
0:01:08.6]} 43. Kh2 {[%clk 0:01:00.4]} 43... Rh8 {[%clk 0:01:09.2]} 44. h5
{[%clk 0:01:00.7]} 44... Rh7 {[%clk 0:01:09.2]} 45. Kh3 {[%clk 0:01:00.2]} 45...
Rh8 {[%clk 0:01:09.5]} 46. Kh4 {[%clk 0:01:00.5]} 46... Rg8 {[%clk 0:01:09.6]}
47. Rg4 {[%clk 0:00:57.6]} 47... Ra8 {[%clk 0:01:07.9]} 48. d4+ {[%clk
0:00:57.7]} 48... Ke6 {[%clk 0:01:08]} 49. h6 {[%clk 0:00:58]} 49... Ra1 {[%clk
0:01:08]} 50. h7 {[%clk 0:00:56.9]} 50... Kf7 {[%clk 0:01:07.2]} 51. h8=Q {[%clk
0:00:54.5]} 51... Rh1+ {[%clk 0:01:07.3]} 52. Nxh1 {[%clk 0:00:52.2]} 1-0

[Event "*** Titled Tuesday Blitz"]
[Site "Chess.com"]
[Date "2021.04.20"]
[Round "11"]
[White "mjray79"]
[Black "Gusarov91"]
[Result "1-0"]
[WhiteElo "2447"]
[BlackElo "2607"]
[TimeControl "180+1"]
[EndTime "12:04:59 PDT"]
[Termination "mjray79 won by checkmate"]

1. d4 {[%clk 0:03:00.9]} 1... b6 {[%clk 0:02:58.1]} 2. e4 {[%clk 0:02:59.5]}
2... Bb7 {[%clk 0:02:58.6]} 3. Bd3 {[%clk 0:02:58.4]} 3... e6 {[%clk 0:02:58.8]}
4. f3 {[%clk 0:02:57.9]} 4... d5 {[%clk 0:02:56.8]} 5. c3 {[%clk 0:02:55.4]}
5... dxe4 {[%clk 0:02:56.4]} 6. fxe4 {[%clk 0:02:55.2]} 6... Bxe4 {[%clk
0:02:55.2]} 7. Bxe4 {[%clk 0:02:54.3]} 7... Qh4+ {[%clk 0:02:54.7]} 8. Kf1
{[%clk 0:02:54.9]} 8... Qxe4 {[%clk 0:02:54.6]} 9. Nf3 {[%clk 0:02:55.3]} 9...
Nf6 {[%clk 0:02:54.1]} 10. Qa4+ {[%clk 0:02:40.7]} 10... Nbd7 {[%clk 0:02:47.2]}
11. Nbd2 {[%clk 0:02:36.6]} 11... Qd3+ {[%clk 0:02:47.2]} 12. Ke1 {[%clk
0:02:33]} 12... c5 {[%clk 0:02:44.2]} 13. Ne5 {[%clk 0:02:17.3]} 13... Qe3+
{[%clk 0:02:42.5]} 14. Kd1 {[%clk 0:02:17.7]} 14... cxd4 {[%clk 0:02:34.1]} 15.
Re1 {[%clk 0:02:12.1]} 15... Qg5 {[%clk 0:01:58.7]} 16. Qc6 {[%clk 0:01:48.4]}
16... Rd8 {[%clk 0:01:55.8]} 17. Ndf3 {[%clk 0:01:31.4]} 17... Qxg2 {[%clk
0:01:29.1]} 18. Nxf7 {[%clk 0:01:30.4]} 18... Be7 {[%clk 0:01:00.1]} 19. Nxh8
{[%clk 0:01:12.1]} 19... d3 {[%clk 0:01:00.2]} 20. Bd2 {[%clk 0:01:09.8]} 20...
Kf8 {[%clk 0:00:54.9]} 21. Qxe6 {[%clk 0:01:04.7]} 21... Qxf3+ {[%clk
0:00:54.5]} 22. Kc1 {[%clk 0:01:05.3]} 22... Ne5 {[%clk 0:00:39.3]} 23. Rxe5
{[%clk 0:01:00.2]} 23... Qh1+ {[%clk 0:00:15.4]} 24. Re1 {[%clk 0:00:59.6]}
24... Qxe1+ {[%clk 0:00:15.6]} 25. Bxe1 {[%clk 0:00:59.6]} 25... d2+ {[%clk
0:00:16.2]} 26. Bxd2 {[%clk 0:00:59.4]} 26... Ke8 {[%clk 0:00:16.8]} 27. Nf7
{[%clk 0:00:56.5]} 27... Rd5 {[%clk 0:00:16]} 28. Kc2 {[%clk 0:00:54.1]} 28...
Kf8 {[%clk 0:00:12.8]} 29. Re1 {[%clk 0:00:53.4]} 29... Bc5 {[%clk 0:00:11.3]}
30. Ne5 {[%clk 0:00:48.2]} 30... Rd6 {[%clk 0:00:09.6]} 31. Qf7# {[%clk
0:00:47.9]} 1-0

[Event "*** Titled Tuesday Blitz"]
[Site "Chess.com"]
[Date "2021.04.20"]
[Round "11"]
[White "TheRealPeakyBlinder"]
[Black "chessdjw"]
[Result "1-0"]
[WhiteElo "2666"]
[BlackElo "2741"]
[TimeControl "180+1"]
[EndTime "12:05:12 PDT"]
[Termination "TheRealPeakyBlinder won by checkmate"]

1. e4 {[%clk 0:02:59.8]} 1... e5 {[%clk 0:02:59.8]} 2. Nf3 {[%clk 0:02:58.4]}
2... Nc6 {[%clk 0:03:00]} 3. Nc3 {[%clk 0:02:58.9]} 3... Nf6 {[%clk 0:02:56.4]}
4. a4 {[%clk 0:02:39.9]} 4... Bb4 {[%clk 0:02:48.7]} 5. Bd3 {[%clk 0:02:38.8]}
5... d6 {[%clk 0:02:41.6]} 6. Nd5 {[%clk 0:02:37.6]} 6... Nxd5 {[%clk
0:02:39.6]} 7. exd5 {[%clk 0:02:36.4]} 7... Ne7 {[%clk 0:02:40.1]} 8. c3 {[%clk
0:02:36.9]} 8... Bc5 {[%clk 0:02:28.4]} 9. b4 {[%clk 0:02:36.8]} 9... Bxf2+
{[%clk 0:02:26]} 10. Kxf2 {[%clk 0:02:36.8]} 10... Nxd5 {[%clk 0:02:26.9]} 11.
Rf1 {[%clk 0:02:31.8]} 11... O-O {[%clk 0:02:25.9]} 12. Kg1 {[%clk 0:02:31.9]}
12... f5 {[%clk 0:02:20.8]} 13. Bc4 {[%clk 0:02:25.1]} 13... Be6 {[%clk
0:02:20.6]} 14. d4 {[%clk 0:02:25]} 14... e4 {[%clk 0:02:01.5]} 15. Ng5 {[%clk
0:02:23.8]} 15... Qf6 {[%clk 0:02:01.7]} 16. Nxe4 {[%clk 0:02:18.2]} 16... fxe4
{[%clk 0:01:43.3]} 17. Rxf6 {[%clk 0:02:17.2]} 17... Rxf6 {[%clk 0:01:43.4]} 18.
Qc2 {[%clk 0:01:41.6]} 18... Re8 {[%clk 0:01:11.1]} 19. Qxe4 {[%clk 0:01:20.9]}
19... Nxc3 {[%clk 0:01:08.9]} 20. Qd3 {[%clk 0:01:11.8]} 20... d5 {[%clk
0:00:43.8]} 21. Qxc3 {[%clk 0:01:10.4]} 21... dxc4 {[%clk 0:00:44.4]} 22. Bg5
{[%clk 0:01:06.2]} 22... Rg6 {[%clk 0:00:44.1]} 23. Bf4 {[%clk 0:01:04.6]} 23...
Bd5 {[%clk 0:00:44.4]} 24. g3 {[%clk 0:00:42.2]} 24... Re2 {[%clk 0:00:43.9]}
25. Re1 {[%clk 0:00:41.5]} 25... Rg2+ {[%clk 0:00:43.6]} 26. Kf1 {[%clk
0:00:41.7]} 26... Rxh2 {[%clk 0:00:43.3]} 27. Re8+ {[%clk 0:00:40.4]} 27... Kf7
{[%clk 0:00:43.3]} 28. Qe3 {[%clk 0:00:40.5]} 28... Rf6 {[%clk 0:00:35.1]} 29.
Re7+ {[%clk 0:00:34.1]} 29... Kg6 {[%clk 0:00:33.1]} 30. Qe5 {[%clk 0:00:34.4]}
30... Rf5 {[%clk 0:00:27.1]} 31. Qxg7+ {[%clk 0:00:34.2]} 31... Kh5 {[%clk
0:00:26.7]} 32. Qh6+ {[%clk 0:00:33.8]} 32... Kg4 {[%clk 0:00:27.2]} 33. Qxh2
{[%clk 0:00:34.7]} 33... c3 {[%clk 0:00:26.6]} 34. Rg7+ {[%clk 0:00:34.2]} 34...
Kf3 {[%clk 0:00:23.9]} 35. Qe2# {[%clk 0:00:34.6]} 1-0